[Event "46th BAN National Premier Chess-ch 2021"]
[Site "Dhaka"]
[Date "2022.01.04"]
[Round "8.5"]
[White "Mohammad, Minhaz Uddin"]
[Black "Islam, Khandaker Aminul"]
[Result "1/2-1/2"]
[ECO "C47"]
[WhiteElo "2259"]
[BlackElo "2155"]
[Annotator "ChessBase"]
[PlyCount "77"]
[EventDate "2021.12.27"]
[EventCountry "BAN"]
[SourceTitle "playchess.com"]
[Source "ChessBase"]
[SourceQuality "1"]
[TimeControl "40/5400+30:1800+30"]

1. e4 {[%emt 0:00:12]} e5 {[%emt 0:00:02]} 2. Nf3 {[%emt 0:00:08]} Nc6 {[%emt 0:00:01]} 3. d4 {[%emt 0:00:19]} exd4 {[%emt 0:00:02]} 4. Nxd4 {[%emt 0:00:02]} Nf6 {[%emt 0:01:11]} 5. Nc3 {[%emt 0:00:03]} Bb4 {[%emt 0:00:07]} 6. Nxc6 {[%emt 0:00:07]} bxc6 {[%emt 0:00:02]} 7. Bd3 {[%emt 0:00:02]} d5 {[%emt 0:00:02]} 8. exd5 {[%emt 0:00:12]} O-O {[%emt 0:00:02]} 9. O-O {[%emt 0:00:03]} cxd5 {[%emt 0:00:11]} 10. Bg5 {[%emt 0:00:05]} c6 {[%emt 1:33:50]} 11. Qf3 {[%emt 0:01:09]} h6 {[%emt 0:00:00]} 12. Bxf6 {[%emt 0:00:06]} Qxf6 {[%emt 0:00:00]} 13. Qxf6 {[%emt 0:00:02]} gxf6 {[%emt 0:00:00]} 14. Ne2 {[%emt 0:00:19]} Bd6 {[%emt 0:00:00]} 15. Nd4 {[%emt 0:02:58]} c5 {[%emt 0:02:30]} 16. Nf5 {[%emt 0:16:44]} Bxf5 {[%emt 0:00:00]} 17. Bxf5 {[%emt 1:16:29]} Rfe8 {[%emt 0:00:00]} 18. Rad1 {[%emt 0:00:30]} Rad8 {[%emt 0:01:30]} 19. f4 {[%emt 0:00:30]} Bf8 {[%emt 0:00:00]} 20. Rf3 {[%emt 0:00:00]} c4 {[%emt 0:00:00]} 21. b3 {[%emt 0:01:00]} Bb4 {[%emt 0:00:00]} 22. Kf1 {[%emt 0:00:30]} a5 {[%emt 0:02:00]} 23. Rf2 {[%emt 0:00:00]} cxb3 {[%emt 0:00:00]} 24. axb3 {[%emt 0:00:00]} Bc3 {[%emt 0:01:00]} 25. Rf3 {[%emt 0:01:30]} d4 {[%emt 0:00:30]} 26. Kf2 {[%emt 0:00:00]} Bb4 {[%emt 0:00:30]} 27. Bd3 {[%emt 0:00:00]} Rd5 {[%emt 0:00:30]} 28. Rg3+ {[%emt 0:00:00]} Kf8 {[%emt 0:00:30]} 29. Rh3 {[%emt 0:00:00]} Kg7 {[%emt 0:00:00]} 30. Bc4 {[%emt 0:00:00]} Rf5 {[%emt 0:01:00]} 31. Kf3 {[%emt 0:03:00]} Bc3 {[%emt 0:00:30]} 32. Kg4 {[%emt 0:00:30]} Rc5 {[%emt 0:00:00]} 33. Bd3 {[%emt 0:00:30]} Be1 {[%emt 0:01:00]} 34. Rh5 {[%emt 0:00:00]} Rxh5 {[%emt 0:00:00]} 35. Kxh5 {[%emt 0:00:00]} Bc3 {[%emt 0:00:00]} 36. Kg4 {[%emt 0:00:00]} Re1 {[%emt 0:00:00]} 37. Rxe1 {[%emt 0:00:00]} Bxe1 {[%emt 0:00:00]} 38. Kf5 {[%emt 0:00:00]} Bc3 {[%emt 0:02:30]} 39. Ke4 {[%emt 0:00:00]} 1/2-1/2

[Event "46th BAN National Premier Chess-ch 2021"]
[Site "Dhaka"]
[Date "2022.01.04"]
[Round "8.6"]
[White "Nayem, Haque"]
[Black "Zia, Tahsin Tajwar"]
[Result "1/2-1/2"]
[ECO "B12"]
[WhiteElo "2091"]
[BlackElo "2232"]
[Annotator "ChessBase"]
[PlyCount "119"]
[EventDate "2021.12.27"]
[EventCountry "BAN"]
[SourceTitle "playchess.com"]
[Source "ChessBase"]
[SourceQuality "1"]
[TimeControl "40/5400+30:1800+30"]

1. e4 {[%emt 0:00:03]} c6 {[%emt 0:00:10]} 2. d4 {[%emt 0:00:03]} d5 {[%emt 0:00:04]} 3. e5 {[%emt 0:00:02]} Bf5 {[%emt 0:00:21]} 4. Nd2 {[%emt 0:00:03]} e6 {[%emt 0:00:20]} 5. Nb3 {[%emt 0:00:03]} Nd7 {[%emt 0:00:06]} 6. Nf3 {[%emt 0:00:16]} Qc7 {[%emt 0:00:06]} 7. Be2 {[%emt 1:33:30]} f6 {[%emt 1:32:53]} 8. O-O {[%emt 0:00:30]} O-O-O {[%emt 0:00:30]} 9. Be3 {[%emt 0:00:30]} h5 {[%emt 0:00:00]} 10. Rc1 {[%emt 0:00:00]} Nh6 {[%emt 0:01:00]} 11. c4 {[%emt 0:00:00]} dxc4 {[%emt 0:00:00]} 12. Bxc4 {[%emt 0:00:00]} Ng4 {[%emt 0:01:00]} 13. Bf4 {[%emt 0:02:00]} g5 {[%emt 0:00:30]} 14. Bd2 {[%emt 0:00:30]} fxe5 {[%emt 0:00:00]} 15. Bxg5 {[%emt 0:00:30]} Bh6 {[%emt 0:00:00]} 16. Bxd8 {[%emt 0:00:00]} Rxd8 {[%emt 0:00:00]} 17. g3 {[%emt 0:01:00]} e4 {[%emt 0:00:00]} 18. Nh4 {[%emt 0:00:30]} Bg5 {[%emt 0:00:00]} 19. Nxf5 {[%emt 0:00:00]} exf5 {[%emt 0:03:00]} 20. f4 {[%emt 0:01:00]} exf3 {[%emt 0:00:30]} 21. Qxf3 {[%emt 0:00:00]} Be3+ {[%emt 0:00:30]} 22. Kg2 {[%emt 0:00:00]} Bxc1 {[%emt 0:00:00]} 23. Rxc1 {[%emt 0:01:30]} Re8 {[%emt 0:00:00]} 24. Qf4 {[%emt 0:00:00]} Ne3+ {[%emt 0:00:00]} 25. Kf3 {[%emt 0:00:00]} Qxf4+ {[%emt 0:00:00]} 26. gxf4 {[%emt 0:01:30]} Nxc4 {[%emt 0:00:00]} 27. Rxc4 {[%emt 0:00:00]} Nb6 {[%emt 0:03:00]} 28. Rc2 {[%emt 0:00:00]} Nd5 {[%emt 0:00:30]} 29. Rg2 {[%emt 0:01:30]} Re3+ {[%emt 0:00:00]} 30. Kf2 {[%emt 0:00:00]} b6 {[%emt 0:01:00]} 31. Rg5 {[%emt 0:00:00]} Rh3 {[%emt 0:00:30]} 32. Kg1 {[%emt 0:00:00]} Rd3 {[%emt 0:00:30]} 33. Rxf5 {[%emt 0:00:00]} a5 {[%emt 0:00:00]} 34. Rf8+ {[%emt 0:02:30]} Kb7 {[%emt 0:01:00]} 35. Kf2 {[%emt 0:00:00]} a4 {[%emt 0:00:00]} 36. Nc1 {[%emt 0:00:00]} Rd2+ {[%emt 0:00:00]} 37. Ke1 {[%emt 0:00:00]} Rxb2 {[%emt 0:00:00]} 38. f5 {[%emt 0:02:00]} Rc2 {[%emt 0:00:00]} 39. Nd3 {[%emt 0:00:00]} Rxh2 {[%emt 0:00:00]} 40. f6 {[%emt 0:00:00]} Nxf6 {[%emt 0:03:00]} 41. Rxf6 {[%emt 0:00:00]} Rxa2 {[%emt 0:00:00]} 42. Rf7+ {[%emt 0:00:00]} Kc8 {[%emt 0:31:00]} 43. Nb4 {[%emt 0:11:52]} Rb2 {[%emt 0:00:00]} 44. Nxc6 {[%emt 0:01:57]} a3 {[%emt 0:00:00]} 45. Re7 {[%emt 0:19:41]} Rc2 {[%emt 0:01:30]} 46. Nb4 {[%emt 0:00:30]} Rb2 {[%emt 0:00:00]} 47. Nc6 {[%emt 0:00:00]} Rc2 {[%emt 0:00:00]} 48. Nb4 {[%emt 0:00:00]} Rc4 {[%emt 0:00:00]} 49. Na2 {[%emt 0:00:00]} Rxd4 {[%emt 0:00:00]} 50. Re3 {[%emt 0:00:00]} Ra4 {[%emt 0:00:00]} 51. Kd2 {[%emt 0:00:00]} h4 {[%emt 0:00:00]} 52. Kc2 {[%emt 0:00:00]} Kd7 {[%emt 0:00:00]} 53. Kb3 {[%emt 0:03:30]} Ra8 {[%emt 0:00:00]} 54. Rh3 {[%emt 0:00:00]} Rh8 {[%emt 0:00:00]} 55. Nc3 {[%emt 0:00:00]} Ke6 {[%emt 0:00:00]} 56. Kxa3 {[%emt 0:00:00]} Kf5 {[%emt 0:00:00]} 57. Nd1 {[%emt 0:00:00]} Kg5 {[%emt 0:00:00]} 58. Nf2 {[%emt 0:02:30]} Rf8 {[%emt 0:00:00]} 59. Rh2 {[%emt 0:00:30]} Rf3+ {[%emt 0:00:00]} 60. Kb4 {[%emt 0:00:00]} 1/2-1/2

[Event "46th BAN National Premier Chess-ch 2021"]
[Site "Dhaka"]
[Date "2022.01.04"]
[Round "8.7"]
[White "Reefat, Bin-Sattar"]
[Black "Subrota, Biswas"]
[Result "0-1"]
[ECO "C45"]
[WhiteElo "2394"]
[BlackElo "2199"]
[Annotator "ChessBase"]
[PlyCount "76"]
[EventDate "2021.12.27"]
[EventCountry "BAN"]
[SourceTitle "playchess.com"]
[Source "ChessBase"]
[SourceQuality "1"]
[TimeControl "40/5400+30:1800+30"]

1. e4 {[%emt 1:31:00]} e5 {[%emt 0:00:01]} 2. Nf3 {[%emt 0:00:00]} Nc6 {[%emt 0:00:20]} 3. d4 {[%emt 0:00:00]} exd4 {[%emt 0:00:04]} 4. Nxd4 {[%emt 0:00:00]} Nf6 {[%emt 1:32:05]} 5. Nxc6 {[%emt 0:00:00]} bxc6 {[%emt 0:00:30]} 6. Nd2 {[%emt 0:00:00]} Bc5 {[%emt 0:00:30]} 7. Bd3 {[%emt 0:00:00]} O-O {[%emt 0:00:30]} 8. O-O {[%emt 0:00:00]} Re8 {[%emt 0:00:30]} 9. Nb3 {[%emt 0:04:00]} Bf8 {[%emt 0:00:00]} 10. Re1 {[%emt 0:00:00]} d6 {[%emt 0:01:00]} 11. h3 {[%emt 0:00:00]} g6 {[%emt 0:00:30]} 12. Bg5 {[%emt 0:00:00]} h6 {[%emt 0:00:00]} 13. Bd2 {[%emt 0:02:00]} Bg7 {[%emt 0:01:00]} 14. Na5 {[%emt 0:00:30]} c5 {[%emt 0:00:30]} 15. f4 {[%emt 0:00:30]} Nh5 {[%emt 0:00:00]} 16. c3 {[%emt 0:00:30]} c6 {[%emt 0:00:00]} 17. Nc4 {[%emt 0:00:00]} d5 {[%emt 0:00:00]} 18. exd5 {[%emt 0:01:00]} cxd5 {[%emt 0:02:00]} 19. Rxe8+ {[%emt 0:00:00]} Qxe8 {[%emt 0:00:00]} 20. Nd6 {[%emt 0:01:00]} Qc6 {[%emt 0:00:00]} 21. Nxc8 {[%emt 0:00:00]} Rxc8 {[%emt 0:00:00]} 22. Be3 {[%emt 0:00:00]} d4 {[%emt 0:00:00]} 23. cxd4 {[%emt 0:00:00]} Re8 {[%emt 0:00:00]} 24. Bf2 {[%emt 0:00:42]} Nxf4 {[%emt 0:00:00]} 25. Bf1 {[%emt 0:00:01]} cxd4 {[%emt 0:03:30]} 26. Rc1 {[%emt 0:02:17]} Qd6 {[%emt 0:00:00]} 27. g3 {[%emt 0:00:00]} Nd5 {[%emt 0:00:00]} 28. Qf3 {[%emt 0:01:00]} Ne3 {[%emt 0:00:00]} 29. Bd3 {[%emt 0:00:00]} Re6 {[%emt 0:00:00]} 30. Rc8+ {[%emt 0:01:00]} Bf8 {[%emt 0:02:30]} 31. Qa8 {[%emt 0:00:00]} Kg7 {[%emt 0:00:00]} 32. Rd8 {[%emt 0:01:00]} Qc5 {[%emt 0:00:00]} 33. Rc8 {[%emt 0:00:30]} Qe7 {[%emt 0:00:00]} 34. Qb8 {[%emt 0:00:30]} Rb6 {[%emt 0:00:00]} 35. Qf4 {[%emt 0:00:30]} Rd6 {[%emt 0:00:00]} 36. Bb5 {[%emt 0:00:30]} Qb7 {[%emt 0:00:00]} 37. Bxe3 {[%emt 0:00:00]} Qxc8 {[%emt 0:00:00]} 38. Bxd4+ {[%emt 0:00:00]} Kg8 {[%emt 0:00:00]} 0-1

[Event "46th BAN National Premier Chess-ch 2021"]
[Site "Dhaka"]
[Date "2022.01.05"]
[Round "9.1"]
[White "Subrota, Biswas"]
[Black "Manon, Reja Neer"]
[Result "1-0"]
[ECO "E94"]
[WhiteElo "2199"]
[BlackElo "1989"]
[Annotator "ChessBase"]
[PlyCount "109"]
[EventDate "2021.12.27"]
[EventCountry "BAN"]
[SourceTitle "playchess.com"]
[Source "ChessBase"]
[SourceQuality "1"]
[TimeControl "40/5400+30:1800+30"]

1. d4 {[%emt 0:16:06]} Nf6 {[%emt 0:00:14]} 2. c4 {[%emt 0:00:05]} g6 {[%emt 0:00:08]} 3. Nc3 {[%emt 0:00:04]} Bg7 {[%emt 0:00:05]} 4. e4 {[%emt 0:00:38]} d6 {[%emt 0:00:06]} 5. Nf3 {[%emt 0:00:07]} O-O {[%emt 0:00:12]} 6. Be2 {[%emt 0:00:03]} e5 {[%emt 0:00:35]} 7. Be3 {[%emt 0:00:03]} Nc6 {[%emt 0:01:45]} 8. O-O {[%emt 1:17:24]} exd4 {[%emt 0:14:36]} 9. Nxd4 {[%emt 0:00:00]} Re8 {[%emt 1:17:19]} 10. f3 {[%emt 0:00:00]} Be6 {[%emt 0:00:30]} 11. Qd2 {[%emt 0:01:30]} Nxd4 {[%emt 0:00:30]} 12. Bxd4 {[%emt 0:00:00]} Nd7 {[%emt 0:00:30]} 13. Bxg7 {[%emt 0:00:00]} Kxg7 {[%emt 0:00:00]} 14. f4 {[%emt 0:00:00]} f6 {[%emt 0:01:00]} 15. Rae1 {[%emt 0:02:00]} Qe7 {[%emt 0:00:30]} 16. b3 {[%emt 0:00:00]} a5 {[%emt 0:00:30]} 17. Bd3 {[%emt 0:01:00]} Bf7 {[%emt 0:00:30]} 18. Bc2 {[%emt 0:00:30]} Nc5 {[%emt 0:00:00]} 19. Re3 {[%emt 0:00:00]} c6 {[%emt 0:00:00]} 20. Rfe1 {[%emt 0:01:00]} Qd7 {[%emt 0:00:00]} 21. Qf2 {[%emt 0:00:30]} Ne6 {[%emt 0:02:00]} 22. Qh4 {[%emt 0:00:30]} g5 {[%emt 0:00:30]} 23. Qh3 {[%emt 0:00:30]} h6 {[%emt 0:00:00]} 24. e5 {[%emt 0:00:00]} dxe5 {[%emt 0:00:00]} 25. fxe5 {[%emt 0:00:00]} fxe5 {[%emt 0:01:30]} 26. Rd1 {[%emt 0:01:30]} Qc7 {[%emt 0:00:30]} 27. Qf5 {[%emt 0:00:00]} Nf8 {[%emt 0:00:00]} 28. Ne4 {[%emt 0:01:00]} Re6 {[%emt 0:00:00]} 29. h4 {[%emt 0:00:00]} gxh4 {[%emt 0:00:09]} 30. Rf1 {[%emt 0:01:00]} Bg6 {[%emt 0:00:51]} 31. Qg4 {[%emt 0:00:30]} Qe7 {[%emt 0:00:21]} 32. Ref3 {[%emt 0:00:00]} h5 {[%emt 0:01:39]} 33. Qh3 {[%emt 0:00:00]} Nh7 {[%emt 0:00:30]} 34. Kh1 {[%emt 0:00:00]} b6 {[%emt 0:00:00]} 35. R3f2 {[%emt 0:00:00]} Rd8 {[%emt 0:01:00]} 36. Qc3 {[%emt 0:00:00]} Rd4 {[%emt 0:00:00]} 37. Nd2 {[%emt 0:03:00]} Rf6 {[%emt 0:00:19]} 38. Bxg6 {[%emt 0:00:00]} Kxg6 {[%emt 0:00:37]} 39. Nf3 {[%emt 0:00:00]} c5 {[%emt 0:01:04]} 40. Qe1 {[%emt 0:01:30]} e4 {[%emt 0:00:00]} 41. Nxh4+ {[%emt 0:00:00]} Kf7 {[%emt 0:01:28]} 42. Qe2 {[%emt 0:31:00]} e3 {[%emt 0:30:02]} 43. Qxh5+ {[%emt 0:00:00]} Ke6 {[%emt 0:00:30]} 44. Nf5 {[%emt 0:01:00]} Qd8 {[%emt 0:00:30]} 45. Qh3 {[%emt 0:00:30]} exf2 {[%emt 0:00:00]} 46. Nxd4+ {[%emt 0:00:30]} Kd6 {[%emt 0:00:00]} 47. Qh2+ {[%emt 0:00:30]} Kd7 {[%emt 0:01:30]} 48. Qxh7+ {[%emt 0:00:00]} Kc8 {[%emt 0:00:30]} 49. Nf3 {[%emt 0:01:00]} Qd6 {[%emt 0:00:00]} 50. Qg8+ {[%emt 0:00:30]} Kc7 {[%emt 0:00:00]} 51. Qg7+ {[%emt 0:00:30]} Kb8 {[%emt 0:00:00]} 52. Rxf2 {[%emt 0:00:30]} Qd1+ {[%emt 0:02:00]} 53. Ng1 {[%emt 0:00:30]} Qh5+ {[%emt 0:00:00]} 54. Nh3 {[%emt 0:00:00]} Qd1+ {[%emt 0:00:00]} 55. Kh2 {[%emt 0:00:00]} 1-0

[Event "46th BAN National Premier Chess-ch 2021"]
[Site "Dhaka"]
[Date "2022.01.08"]
[Round "11.1"]
[White "Zia, Tahsin Tajwar"]
[Black "Manon, Reja Neer"]
[Result "1/2-1/2"]
[ECO "A52"]
[WhiteElo "2232"]
[BlackElo "1989"]
[Annotator "ChessBase"]
[PlyCount "34"]
[EventDate "2021.12.27"]
[EventCountry "BAN"]
[SourceTitle "playchess.com"]
[Source "ChessBase"]
[SourceQuality "1"]
[TimeControl "40/5400+30:1800+30"]

1. d4 {[%emt 0:01:24]} Nf6 {[%emt 0:00:02]} 2. c4 {[%emt 0:00:18]} e5 {[%emt 0:00:08]} 3. dxe5 {[%emt 0:00:07]} Ng4 {[%emt 1:31:50]} 4. e4 {[%emt 1:30:41]} Nxe5 {[%emt 0:00:30]} 5. f4 {[%emt 0:00:00]} Nec6 {[%emt 0:00:00]} 6. Nf3 {[%emt 0:01:00]} Bc5 {[%emt 0:01:00]} 7. Bd3 {[%emt 0:00:00]} d6 {[%emt 0:00:30]} 8. Qe2 {[%emt 0:00:00]} Bg4 {[%emt 0:00:00]} 9. Be3 {[%emt 0:00:00]} Nd4 {[%emt 0:01:00]} 10. Qf2 {[%emt 0:02:00]} Ne6 {[%emt 0:00:30]} 11. Nd4 {[%emt 0:00:30]} Nxd4 {[%emt 0:00:00]} 12. Bxd4 {[%emt 0:00:00]} Nc6 {[%emt 0:01:00]} 13. Be3 {[%emt 0:01:00]} Nb4 {[%emt 0:00:00]} 14. Qd2 {[%emt 0:00:30]} Qf6 {[%emt 0:01:00]} 15. e5 {[%emt 0:00:00]} Qh6 {[%emt 0:00:00]} 16. O-O {[%emt 0:01:00]} O-O-O {[%emt 0:01:00]} 17. Nc3 {[%emt 0:00:30]} Nxd3 {[%emt 0:00:30]} 1/2-1/2

[Event "46th BAN National Premier Chess-ch 2021"]
[Site "Dhaka"]
[Date "2022.01.08"]
[Round "11.5"]
[White "Mehdi, Hasan Parag"]
[Black "Mohammad, Minhaz Uddin"]
[Result "1-0"]
[ECO "C42"]
[WhiteElo "2230"]
[BlackElo "2259"]
[Annotator "ChessBase"]
[PlyCount "85"]
[EventDate "2021.12.27"]
[EventCountry "BAN"]
[SourceTitle "playchess.com"]
[Source "ChessBase"]
[SourceQuality "1"]
[TimeControl "40/5400+30:1800+30"]

1. e4 {[%emt 1:31:00]} e5 {[%emt 0:13:49]} 2. Nf3 {[%emt 0:00:00]} Nf6 {[%emt 0:00:10]} 3. Nxe5 {[%emt 0:01:00]} d6 {[%emt 0:00:58]} 4. Nf3 {[%emt 0:00:00]} Nxe4 {[%emt 1:17:33]} 5. Nc3 {[%emt 0:00:00]} Nxc3 {[%emt 0:00:00]} 6. dxc3 {[%emt 0:00:00]} Be7 {[%emt 0:00:00]} 7. Be3 {[%emt 0:02:00]} Nd7 {[%emt 0:00:00]} 8. Qd2 {[%emt 0:00:00]} Nf6 {[%emt 0:00:00]} 9. O-O-O {[%emt 0:00:00]} O-O {[%emt 0:00:00]} 10. Bd3 {[%emt 0:00:00]} c5 {[%emt 0:00:00]} 11. Rhe1 {[%emt 0:00:00]} Be6 {[%emt 0:00:00]} 12. Kb1 {[%emt 0:02:30]} d5 {[%emt 0:00:00]} 13. Ng5 {[%emt 0:00:30]} c4 {[%emt 0:04:30]} 14. Be2 {[%emt 0:00:30]} a5 {[%emt 0:00:30]} 15. Nxe6 {[%emt 0:00:00]} fxe6 {[%emt 0:00:00]} 16. f4 {[%emt 0:01:00]} b5 {[%emt 0:01:00]} 17. Bf3 {[%emt 0:00:00]} b4 {[%emt 0:00:00]} 18. Bd4 {[%emt 0:00:00]} Ra6 {[%emt 0:01:00]} 19. g4 {[%emt 0:00:00]} Ne8 {[%emt 0:00:00]} 20. f5 {[%emt 0:02:00]} Nc7 {[%emt 0:01:00]} 21. Qg2 {[%emt 0:00:00]} bxc3 {[%emt 0:00:00]} 22. Bxc3 {[%emt 0:00:00]} Nb5 {[%emt 0:01:00]} 23. Be5 {[%emt 0:01:30]} c3 {[%emt 0:00:30]} 24. bxc3 {[%emt 0:00:30]} d4 {[%emt 0:00:30]} 25. Ka1 {[%emt 0:00:30]} Qc8 {[%emt 0:00:30]} 26. Rd3 {[%emt 0:00:00]} Qc4 {[%emt 0:00:00]} 27. Bxd4 {[%emt 0:00:00]} Nxd4 {[%emt 0:01:00]} 28. cxd4 {[%emt 0:00:00]} Bb4 {[%emt 0:00:30]} 29. Ree3 {[%emt 0:02:00]} Rb8 {[%emt 0:00:00]} 30. c3 {[%emt 0:00:00]} Rab6 {[%emt 0:01:00]} 31. Be4 {[%emt 0:01:00]} Ba3 {[%emt 0:00:00]} 32. Rd2 {[%emt 0:00:00]} Bc1 {[%emt 0:01:00]} 33. Qe2 {[%emt 0:00:00]} Qa4 {[%emt 0:00:30]} 34. fxe6 {[%emt 0:00:00]} Bb2+ {[%emt 0:00:00]} 35. Rxb2 {[%emt 0:00:00]} Rxb2 {[%emt 0:00:00]} 36. Qxb2 {[%emt 0:00:00]} Qd1+ {[%emt 0:01:30]} 37. Qb1 {[%emt 0:00:00]} Rxb1+ {[%emt 0:00:00]} 38. Bxb1 {[%emt 0:00:00]} Qd2 {[%emt 0:00:00]} 39. Rd3 {[%emt 0:04:00]} Qe2 {[%emt 0:00:00]} 40. d5 {[%emt 0:00:00]} a4 {[%emt 0:00:00]} 41. a3 {[%emt 0:00:00]} Kf8 {[%emt 0:32:30]} 42. d6 {[%emt 0:00:00]} Ke8 {[%emt 0:00:00]} 43. Rd4 {[%emt 0:00:00]} 1-0